bitfinex-derivatives/quotes_ETHF0:USTF0_20251229
["timestamp","ask_amount","ask_price","bid_price","bid_amount"]
[1766978068957,0.16605,3013.8,3012.7,0.00497826]
[1766978070358,0.16606,3013.7,3012.7,0.00497826]
[1766978088468,0.16606,3013.7,3012.4,4.16363835]
[1766978088667,0.16606,3013.7,3012.3,4.16363835]
[1766978089373,0.00497826,3013.3,3012.7,0.00497826]
[1766978093883,0.00497826,3013.3,3012.6,1.71473835]
[1766978094084,0.00497826,3013.3,3012.1,5.98252857]
[1766978094380,0.00497826,3013.3,3012.0,5.98252857]
[1766978094977,0.00497826,3013.3,3012.3,0.00497826]
[1766978102090,0.00497826,3013.3,3012.5,4.16489111]
[1766978102286,0.00497826,3013.3,3012.6,4.16489111]
[1766978102494,0.009,3013.6,3012.6,4.16489111]
[1766978103084,0.009,3013.6,3012.7,4.16489111]
[1766978103284,0.17504,3013.9,3012.7,4.16489111]
[1766978103485,0.17504,3013.9,3012.3,0.00497826]
[1766978103486,0.00497826,3013.6,3012.6,4.16489111]
[1766978104897,0.00497826,3013.6,3012.7,4.16489111]
[1766978105086,0.00497826,3013.6,3012.4,4.16489111]
[1766978105693,1.44896151,3013.6,3012.4,4.16489111]
[1766978105994,1.44896151,3013.6,3011.9,5.98252857]
[1766978105995,0.16609,3013.1,3011.9,5.98252857]
[1766978106493,0.16609,3013.1,3011.8,0.00431903]
[1766978107093,0.16609,3013.1,3012.1,0.00497826]
[1766978108895,1.44398325,3013.2,3011.8,0.00431903]
[1766978109102,0.16611,3012.7,3011.8,0.00431903]
[1766978109403,0.16873547,3012.7,3011.8,0.00431903]
[1766978110004,0.16873547,3012.7,3011.9,0.00497826]
[1766978110905,0.16873547,3012.7,3011.8,0.00431903]
[1766978111203,0.16612,3012.5,3010.7,11.73352857]
[1766978111399,0.16612,3012.5,3010.7,5.98252857]
[1766978111605,0.16612,3012.5,3010.8,4.29862247]
[1766978111904,0.00497826,3012.0,3011.3,0.00497826]
[1766978112203,0.00497826,3012.0,3011.3,0.00891293]
[1766978113408,0.16612,3012.5,3011.3,0.00891293]
[1766978113704,0.00262547,3012.7,3011.3,0.00891293]
[1766978114106,0.00262547,3012.7,3011.3,4.1686668]
[1766978114406,0.00497826,3012.3,3011.3,4.1686668]
[1766978114600,0.00262547,3012.7,3011.3,4.1686668]
[1766978115002,0.00262547,3012.7,3011.4,4.35740879]
[1766978115202,0.00262547,3012.7,3011.5,4.15975387]
[1766978115602,0.00497826,3012.4,3011.5,4.15975387]
[1766978116004,0.00262547,3012.7,3011.5,4.15975387]
[1766978117006,0.00497826,3012.4,3011.5,4.15975387]
[1766978118009,0.00262547,3012.7,3011.5,4.15975387]
[1766978120105,0.00262547,3012.7,3011.4,4.15975387]
[1766978121505,1.44731103,3012.7,3011.4,4.15975387]
[1766978121705,1.44731103,3012.7,3011.3,0.00891293]
[1766978123304,1.61342103,3012.7,3011.3,0.00891293]
[1766978124509,1.62242103,3012.7,3011.3,0.00891293]
[1766978126109,0.17773547,3012.7,3011.7,1.44468556]
[1766978126814,0.17773547,3012.7,3011.4,1.44468556]
[1766978127316,0.01162547,3012.7,3011.6,1.44468556]
[1766978127915,0.3319,3012.6,3011.6,1.44468556]
[1766978130520,0.17505,3013.9,3012.2,1.44468556]
[1766978131318,0.16605,3013.9,3012.5,1.44468556]
[1766978131518,0.17033622,3013.9,3012.9,0.00497826]
[1766978131916,0.17033622,3013.9,3012.9,1.44966382]
[1766978132218,0.17033622,3013.9,3012.9,0.00497826]
[1766978134819,0.00428622,3013.9,3012.9,0.00497826]
[1766978135017,0.00428622,3013.9,3011.7,1.44468556]
[1766978135018,1.44468556,3013.4,3011.7,1.44468556]
[1766978135322,1.44468556,3013.4,3012.0,1.44468556]
[1766978136019,0.00497826,3013.0,3012.4,0.00497826]
[1766978137513,0.00497826,3013.0,3011.5,1.61085556]
[1766978137709,0.00497826,3013.0,3011.5,1.44468556]
[1766978138726,0.00497826,3013.0,3011.9,0.00497826]
[1766978140022,0.00497826,3013.0,3012.1,1.44468556]
[1766978142423,0.00497826,3013.0,3011.9,0.00497826]
[1766978143426,1.44966382,3013.0,3011.9,0.00497826]
[1766978144314,1.44468556,3012.7,3011.9,0.00497826]
[1766978145324,1.44468556,3012.9,3011.9,0.00497826]
[1766978146124,1.44468556,3012.6,3011.3,0.00393467]
[1766978147230,1.44468556,3012.6,3011.6,0.00497826]
[1766978148621,1.44468556,3012.8,3011.6,0.00497826]
[1766978152827,1.44468556,3012.5,3011.6,0.00497826]
[1766978153427,1.44468556,3011.8,3011.3,0.00393467]
[1766978153628,1.44468556,3011.5,3010.8,4.15975387]
[1766978153820,1.44468556,3011.8,3010.4,4.15975387]
[1766978154321,0.16613,3012.3,3010.9,1.44468556]
[1766978154521,0.00497826,3011.9,3011.3,0.00497826]
[1766978155329,0.00497826,3011.9,3010.9,0.00263031]
[1766978156326,0.00497826,3011.9,3011.1,0.00497826]
[1766978168234,0.00307771,3012.3,3011.1,0.00497826]
[1766978168541,0.00307771,3012.3,3011.3,1.44468556]
[1766978169229,0.00497826,3012.1,3011.3,1.44468556]
[1766978175837,0.00497826,3012.1,3011.2,1.44468556]
[1766978178046,0.00497826,3012.1,3011.1,0.00497826]
[1766978178241,0.00497826,3012.1,3011.2,1.44468556]
[1766978181646,0.00497826,3012.1,3011.1,4.16473213]
[1766978181839,0.00497826,3012.1,3011.2,1.44468556]
[1766978182441,0.00497826,3012.1,3011.1,4.16473213]
[1766978183848,0.00497826,3012.1,3011.1,0.00497826]
[1766978185446,0.00497826,3012.1,3011.1,4.16473213]
[1766978185848,0.00497826,3012.1,3011.1,0.00497826]
[1766978187350,0.00497826,3012.1,3011.1,4.16473213]
[1766978197560,0.00497826,3012.1,3011.2,4.15975387]
[1766978201065,0.16609,3013.1,3011.3,1.44493772]
[1766978201261,0.16609,3013.1,3011.6,4.15975387]
[1766978201662,0.16609,3013.1,3011.5,4.15975387]
[1766978202059,0.00497826,3012.6,3011.4,4.15975387]
[1766978203660,0.00497826,3012.6,3011.3,5.60469159]
[1766978210777,0.00497826,3012.6,3011.3,4.15975387]
[1766978210970,0.00497826,3012.6,3011.2,4.15975387]
[1766978211674,0.00497826,3012.6,3011.4,4.15975387]
[1766978220281,0.00497826,3012.6,3011.3,4.15975387]
[1766978223486,0.00497826,3012.6,3011.4,4.15975387]
[1766978226189,0.00497826,3012.6,3011.2,4.15975387]
[1766978226589,0.00497826,3012.6,3011.3,4.15975387]
[1766978232588,0.00497826,3012.6,3011.3,5.60469159]
[1766978232789,0.00497826,3012.6,3011.3,1.44493772]
[1766978233787,0.00497826,3012.6,3011.1,0.00497826]
[1766978233788,0.00397488,3013.1,3012.1,1.44493772]
[1766978234195,0.00397488,3013.1,3011.7,1.44493772]
[1766978234487,0.00397488,3013.1,3011.7,5.72253964]
[1766978235295,0.00397488,3013.1,3011.7,4.27760192]
[1766978235999,0.00497826,3012.7,3011.7,4.27760192]
[1766978237091,0.00397488,3013.1,3011.7,4.27760192]
[1766978240793,0.17006488,3013.1,3011.3,1.3219054]
[1766978240997,0.17006488,3013.1,3011.5,5.746]
[1766978241198,0.17006488,3013.1,3011.4,4.36570341]
[1766978241396,0.17006488,3013.1,3011.3,7.0679054]
[1766978241902,0.17006488,3013.1,3011.3,1.3219054]
[1766978242106,0.00397488,3013.1,3011.3,1.16337809]
[1766978242301,0.1661,3012.8,3011.3,1.16337809]
[1766978242600,0.1661,3012.8,3011.1,5.75097826]
[1766978242801,0.1661,3012.8,3011.1,0.00497826]
[1766978243795,0.1661,3012.8,3011.4,1.44493772]
[1766978244197,0.1661,3012.8,3011.4,5.60469159]
[1766978244509,0.00397488,3013.1,3011.1,0.17117826]
[1766978244510,0.00397488,3013.1,3012.0,1.44397804]
[1766978245901,0.00397488,3013.1,3011.4,4.15975387]
[1766978246201,0.00397488,3013.1,3011.6,1.44397804]
[1766978247313,0.00397488,3013.1,3011.5,1.44397804]
[1766978247497,1.44397804,3013.0,3011.5,1.44397804]
[1766978247699,0.16609,3013.0,3011.5,1.44397804]
[1766978248003,1.61006804,3013.0,3011.5,1.44397804]
[1766978252505,0.16609,3013.0,3011.8,1.44397804]
[1766978253807,0.16609,3013.0,3011.5,1.44397804]
[1766978255308,1.61006804,3013.0,3011.5,1.44397804]
[1766978255508,1.44397804,3012.7,3011.2,4.32594387]
[1766978255713,1.44397804,3012.7,3011.3,5.747]
[1766978257507,1.44397804,3012.7,3011.2,0.16619]
[1766978257905,1.44397804,3012.4,3011.1,1.15489945]
[1766978258305,1.44397804,3012.4,3011.1,0.00497826]
[1766978259810,1.44397804,3012.6,3011.1,0.00497826]
[1766978263310,0.009,3012.9,3011.8,1.44397804]
[1766978268112,0.00397488,3013.1,3011.8,1.44397804]
[1766978273211,0.00397488,3013.1,3011.4,0.16618]
[1766978273414,0.00397488,3013.1,3012.0,1.44397804]
[1766978274524,0.00397488,3013.1,3012.3,1.44397804]
[1766978276225,1.44397804,3014.1,3012.6,1.44397804]
[1766978276419,0.16605,3013.9,3013.0,0.00497826]
[1766978277221,0.16782513,3013.9,3013.0,0.00497826]
[1766978281828,0.00177513,3013.9,3013.0,0.00497826]
[1766978284828,0.16601,3014.4,3013.2,1.44397804]
[1766978285829,0.16601,3014.4,3013.2,1.44736345]
[1766978287031,0.16601,3014.4,3013.5,1.44397804]
[1766978287431,4.766,3014.7,3013.5,1.44397804]
[1766978287626,4.766,3014.7,3013.8,1.44397804]
[1766978288227,4.766,3014.7,3013.2,0.00338541]
[1766978288533,4.766,3014.7,3013.5,1.44397804]
[1766978291327,0.16601,3014.6,3013.2,0.00338541]
[1766978293336,1.44397804,3014.4,3013.2,0.00338541]
[1766978299537,4.766,3014.7,3013.2,0.00338541]
[1766978299538,1.44397804,3014.1,3013.2,0.00338541]
[1766978299742,1.61000804,3014.2,3013.2,0.00338541]
[1766978304532,0.16603,3014.2,3013.2,0.00338541]
[1766978321250,0.009,3014.6,3013.2,0.00338541]
[1766978321456,0.16603,3014.1,3013.2,0.00338541]
[1766978321962,0.16604,3014.0,3013.0,0.00497826]
[1766978322861,0.16604,3014.0,3013.0,0.00882277]
[1766978323261,0.16604,3013.9,3013.0,0.00882277]
[1766978323658,0.00497826,3013.8,3013.0,2.277e-05]
[1766978325363,0.16605,3013.7,3013.0,2.277e-05]
[1766978325763,0.16605,3013.7,3013.0,0.00500103]
[1766978333966,0.16609,3013.1,3012.4,4.15975387]
[1766978334172,0.16609,3013.1,3011.5,1.14470253]
[1766978334364,0.16609,3013.1,3011.4,5.30462675]
[1766978334570,0.16609,3013.1,3011.6,4.30128033]
[1766978334972,0.16609,3013.1,3012.0,0.00497826]
[1766978337068,0.16609,3013.0,3011.6,0.00355459]
[1766978338174,0.16609,3013.0,3012.0,0.00497826]
[1766978346574,1.609422,3012.9,3011.6,0.00355459]
[1766978346781,0.1661,3012.8,3011.6,0.00355459]
[1766978346982,0.16611,3012.7,3011.6,0.00355459]
[1766978347780,0.16611,3012.7,3011.8,0.00497826]
[1766978351180,1.609442,3012.5,3010.7,0.16622]
[1766978351384,4.761,3012.4,3010.7,0.16622]
[1766978352288,0.00497826,3011.9,3011.2,0.00331885]
[1766978352480,0.00760798,3011.9,3011.2,0.00331885]
[1766978356384,0.332,3011.8,3011.2,0.00331885]
[1766978358683,1.775322,3011.8,3010.7,0.00395827]
[1766978359486,1.941482,3011.8,3010.7,0.00395827]
[1766978365489,0.49816,3011.8,3010.7,0.00395827]
[1766978365794,0.332,3011.8,3010.7,0.00395827]
[1766978366697,1.77778563,3011.8,3010.7,0.00395827]
[1766978368098,0.332,3011.8,3010.7,0.00395827]
[1766978375390,0.332,3011.8,3010.1,4.15975387]
[1766978375596,0.332,3011.8,3010.4,1.44578563]
[1766978375999,0.332,3011.8,3010.7,1.44578563]
[1766978376396,0.332,3011.8,3010.7,0.00308156]
[1766978376903,1.44578563,3011.6,3009.9,0.16626]
[1766978377902,1.44578563,3011.6,3009.9,0.0038083]
[1766978378498,1.44578563,3011.3,3009.9,0.0038083]
[1766978379406,0.16618,3011.5,3010.1,1.44578563]
[1766978380301,1.44578563,3011.4,3009.9,0.0038083]
[1766978381606,1.61196563,3011.5,3009.9,0.0038083]
[1766978382408,1.44578563,3011.2,3009.9,0.0038083]
[1766978382795,1.44578563,3010.9,3009.9,0.0038083]
[1766978383008,1.44578563,3011.1,3009.9,0.0038083]
[1766978383401,0.16619,3011.3,3010.1,1.44578563]
[1766978384807,0.16619,3011.3,3009.9,0.0038083]
[1766978386511,0.332,3011.2,3009.9,0.0038083]
[1766978387913,1.44578563,3010.9,3009.9,0.0038083]
[1766978390410,1.44578563,3011.0,3009.9,0.0038083]
[1766978390910,0.49819,3011.2,3009.9,0.0038083]
[1766978391912,0.19230962,3011.2,3010.7,1.44578563]
[1766978392115,0.00760798,3011.9,3011.0,1.44578563]
[1766978392917,0.00760798,3011.9,3010.7,1.44578563]
[1766978394215,0.00760798,3011.9,3011.0,1.44578563]
[1766978395519,0.00760798,3011.9,3010.8,1.44578563]
[1766978395917,0.33960798,3011.9,3010.8,1.44578563]
[1766978398917,0.33960798,3011.9,3011.1,1.44578563]
[1766978402222,0.33960798,3011.9,3010.6,4.15975387]
[1766978402427,0.33960798,3011.9,3011.1,1.44578563]
[1766978402816,0.16611,3012.7,3011.4,1.44578563]
[1766978403016,0.16607,3013.4,3012.0,1.44578563]
[1766978403820,0.00497826,3013.0,3012.4,0.00497826]
[1766978404025,0.00497826,3013.0,3012.4,0.00741649]
[1766978404228,0.00497826,3013.0,3012.4,1.649e-05]
[1766978408324,0.00497826,3013.0,3012.4,1.44580212]
[1766978409832,0.00497826,3013.0,3012.4,1.649e-05]
[1766978418745,0.00497826,3013.0,3012.4,1.44580212]
[1766978418947,0.00308043,3013.4,3012.7,1.44578563]
[1766978419846,0.00805869,3013.4,3012.7,1.45076389]
[1766978428447,0.00805869,3013.4,3012.7,0.00497826]
[1766978432442,0.16602,3014.3,3012.7,0.00497826]
[1766978433444,0.00497826,3013.8,3012.7,0.00497826]
[1766978443858,0.00497826,3013.8,3012.7,4.16473213]
[1766978445464,0.00497826,3013.8,3012.8,4.15975387]
[1766978447362,0.00497826,3013.8,3012.9,4.15975387]
[1766978448561,0.00497826,3013.8,3013.0,4.15975387]
[1766978452266,0.00497826,3013.8,3013.1,4.15975387]
[1766978462167,0.00497826,3013.8,3012.8,4.15975387]
[1766978464072,0.00497826,3013.8,3012.7,9.81673213]
[1766978466683,0.00497826,3013.8,3012.7,4.16473213]
[1766978466882,0.00497826,3013.8,3012.8,5.666]
[1766978468090,0.00497826,3013.8,3012.7,4.16473213]
[1766978468388,0.00497826,3013.8,3012.8,5.67]
[1766978471790,0.00497826,3013.8,3013.0,4.15975387]
[1766978473091,0.00497826,3013.8,3012.9,9.84075387]
[1766978473293,0.00497826,3013.8,3012.9,4.15975387]
[1766978473484,0.00497826,3013.8,3012.9,9.84375387]
[1766978473684,0.00497826,3013.8,3012.9,4.15975387]
[1766978475091,0.00497826,3013.8,3012.8,9.84475387]
[1766978476097,0.00497826,3013.8,3012.8,4.15975387]
[1766978476582,0.17102826,3013.8,3012.8,4.15975387]
[1766978476894,0.17102826,3013.8,3012.7,4.16473213]
[1766978477101,0.17102826,3013.8,3012.7,0.00497826]
[1766978477794,0.16607,3013.4,3012.7,0.00497826]
[1766978477994,1.60964473,3013.4,3012.4,1.649e-05]
[1766978478395,0.16607,3013.4,3012.4,1.649e-05]
[1766978478894,0.16607,3013.4,3012.6,0.00497826]
[1766978479388,0.16608,3013.2,3012.4,1.649e-05]
[1766978479796,0.16609,3013.1,3012.4,1.649e-05]
[1766978484191,0.16609,3013.1,3011.5,5.693]
[1766978484386,0.16609,3013.0,3011.5,5.693]
[1766978485196,0.1661,3012.9,3011.5,5.6960098]
[1766978485691,0.009,3013.3,3011.5,0.0030098]
[1766978485692,0.1661,3012.8,3011.5,0.0030098]
[1766978486289,4.96211,3012.7,3011.5,0.0030098]
[1766978486792,1.60968473,3012.6,3011.5,0.0030098]
[1766978486990,1.44357473,3012.6,3011.3,0.11859426]
[1766978487190,0.16614,3012.1,3010.5,4.14950016]
[1766978487591,0.16614,3012.1,3010.4,10.13202873]
[1766978487792,0.16615,3012.0,3010.4,4.14950016]
[1766978487988,0.16618,3011.5,3010.4,0.00370521]
[1766978488293,4.796,3011.4,3010.4,0.00370521]
[1766978489497,1.44600471,3011.2,3010.4,0.00370521]
[1766978491088,0.16618,3011.4,3010.4,0.00370521]
[1766978491302,0.00347717,3012.0,3010.6,1.44600471]
[1766978491503,4.798,3011.9,3010.4,0.00370521]
[1766978491799,4.798,3011.9,3010.6,1.44600471]
[1766978492000,0.00347717,3012.0,3010.6,1.44600471]
[1766978492200,4.80147717,3012.0,3010.9,1.44600471]
[1766978492395,0.00347717,3012.0,3010.6,1.44600471]
[1766978492601,4.80147717,3012.0,3010.6,1.44600471]
[1766978492797,4.80147717,3012.0,3010.4,0.00370521]
[1766978493303,4.96762717,3012.0,3010.4,0.00370521]
[1766978493502,1.44600471,3011.8,3010.4,0.00370521]
[1766978498196,4.96762717,3012.0,3010.4,0.00370521]
[1766978499901,1.44600471,3011.5,3010.4,0.00370521]
[1766978500102,1.44600471,3011.2,3010.4,0.00370521]
[1766978501104,4.796,3011.1,3010.4,0.00370521]
[1766978501301,1.44600471,3010.9,3009.4,0.16629]
[1766978501503,0.00497826,3010.5,3009.4,0.16629]
[1766978501697,0.00497826,3010.5,3009.5,4.24911603]
[1766978501893,0.00497826,3010.5,3009.3,2.60027891]
[1766978501894,0.00497826,3010.5,3009.2,1.44600471]
[1766978502297,0.00497826,3010.5,3009.2,1.44879251]
[1766978502904,0.00497826,3010.5,3009.2,0.0027878]
[1766978503104,0.00497826,3010.5,3009.4,1.44600471]
[1766978504705,0.00497826,3010.5,3009.3,1.44600471]
[1766978507099,0.00497826,3010.5,3009.2,0.0027878]
[1766978508411,1.44600471,3010.1,3009.2,0.0027878]
[1766978509407,1.44600471,3009.8,3009.2,0.0027878]
[1766978509603,0.3321,3010.4,3009.2,0.0027878]
[1766978509801,0.3321,3010.4,3009.4,1.44600471]
[1766978510200,0.3321,3010.4,3009.2,0.0027878]
[1766978510509,0.3321,3010.4,3009.2,1.44879251]
[1766978510707,0.33498419,3010.4,3009.2,1.44879251]
[1766978513110,0.33498419,3010.4,3009.4,1.44600471]
[1766978515915,0.33498419,3010.4,3009.2,0.0027878]
[1766978516705,0.33498419,3010.4,3009.3,1.44600471]
[1766978518412,0.33498419,3010.4,3009.2,0.0027878]
[1766978521912,0.33498419,3010.4,3009.3,1.44600471]
[1766978522220,0.33498419,3010.4,3009.2,1.44879251]
[1766978522615,0.33498419,3010.4,3009.2,0.0027878]
[1766978528321,0.33498419,3010.4,3009.3,1.44600471]
[1766978528924,0.33498419,3010.4,3009.2,0.0027878]
[1766978530119,1.7809889,3010.4,3009.2,0.0027878]
[1766978531427,1.44600471,3010.1,3009.2,0.0027878]
[1766978532519,1.44600471,3010.3,3009.2,0.0027878]
[1766978536531,1.44600471,3010.0,3008.9,0.1190633]
[1766978537234,1.44600471,3010.0,3008.3,1.44600471]
[1766978537635,1.44600471,3010.0,3008.4,4.29995633]
[1766978538138,1.44600471,3009.7,3008.4,4.29995633]
[1766978538338,1.6151289,3010.4,3008.9,1.44600471]
[1766978538535,2.495,3010.3,3008.9,1.44600471]
[1766978538838,1.44600471,3010.2,3008.9,1.44600471]
[1766978539636,1.44600471,3010.2,3008.6,1.44600471]
[1766978539835,0.3322,3010.1,3008.6,1.44600471]
[1766978540033,1.44600471,3009.9,3008.4,4.28663064]
[1766978540334,1.44600471,3009.9,3008.3,0.16873836]
[1766978540537,1.44600471,3009.9,3008.4,4.28663064]
[1766978540735,0.3322,3010.1,3009.1,1.44600471]
[1766978541738,0.3322,3010.1,3009.4,1.44600471]
[1766978542036,0.3322,3010.1,3009.1,1.44600471]
[1766978543341,0.3322,3010.1,3008.8,1.44600471]
[1766978543532,0.3322,3010.1,3008.7,1.61233471]
[1766978543733,0.3322,3010.1,3008.8,4.3083863]
[1766978544634,0.3322,3010.1,3008.7,1.61233471]
[1766978544937,0.3322,3010.1,3009.0,1.44600471]
[1766978545138,0.3322,3010.1,3008.8,4.23308004]
[1766978545434,0.3322,3010.1,3009.1,1.44600471]
[1766978546034,0.3322,3010.1,3008.7,0.16633]
[1766978546237,0.3322,3010.1,3009.0,1.44600471]
[1766978546736,0.3322,3010.1,3009.1,4.26768533]
[1766978547037,0.3322,3010.1,3009.0,1.44600471]
[1766978547436,0.3322,3010.1,3008.7,0.16633]
[1766978547437,0.3322,3010.1,3008.8,1.44600471]
[1766978547632,0.3322,3010.1,3008.7,0.16633]
[1766978547633,1.77820471,3010.1,3008.7,0.16633]
[1766978549931,1.77820471,3010.1,3008.3,1.44839307]
[1766978550233,1.77820471,3010.1,3008.5,4.33494022]
[1766978550438,1.77820471,3010.1,3008.4,4.33494022]
[1766978550639,1.77820471,3010.1,3008.3,0.00238836]
[1766978550640,0.3322,3010.1,3008.3,0.00238836]
[1766978550841,0.3322,3010.1,3008.4,5.78241605]
[1766978551836,1.68588419,3010.4,3008.4,5.78241605]
[1766978552838,4.78788419,3010.4,3008.4,5.94876605]
[1766978554935,0.3321,3010.3,3008.4,5.94876605]
[1766978555241,0.3321,3010.3,3008.4,4.50129022]
[1766978555440,5.1161,3010.3,3008.4,4.50129022]
[1766978567951,4.784,3010.3,3008.4,4.50129022]
[1766978569952,4.793,3010.3,3008.4,4.50129022]
[1766978572055,4.784,3010.3,3008.4,4.50129022]
[1766978572255,0.3322,3010.2,3008.4,4.50129022]
[1766978578960,1.77967583,3010.2,3008.4,4.50129022]
[1766978579756,1.77967583,3010.2,3008.4,0.16635]
[1766978582656,4.777,3010.1,3008.4,0.16635]
[1766978590464,4.786,3010.1,3008.4,0.16635]
[1766978592566,4.95225,3010.1,3008.4,0.16635]
[1766978593555,4.786,3010.1,3008.3,0.00238836]
[1766978593757,1.61374583,3009.8,3008.3,0.00238836]
[1766978594069,4.774,3009.7,3008.3,0.00238836]
[1766978598878,4.93927,3009.8,3008.3,0.00238836]
[1766978604775,0.009,3009.7,3008.3,0.00238836]
[1766978605685,0.3322,3009.6,3008.3,0.00238836]
[1766978609991,5.1022,3009.6,3008.3,0.00238836]
[1766978612491,0.3322,3009.6,3008.3,0.00238836]
[1766978613194,0.3322,3009.6,3008.4,1.44774503]
[1766978613492,0.3322,3009.6,3008.7,1.44774503]
[1766978615093,0.00497826,3010.5,3009.3,1.44774503]
[1766978615305,0.00497826,3010.5,3009.4,1.44774503]
[1766978616293,0.00497826,3010.5,3009.3,1.44774503]
[1766978616995,0.00497826,3010.5,3009.4,4.36592874]
[1766978617193,0.00497826,3010.5,3009.6,1.44774503]
[1766978617588,0.00497826,3010.5,3008.9,0.16631]
[1766978617782,0.00497826,3010.5,3009.3,1.44774503]
[1766978618394,0.008861,3010.5,3009.3,1.44774503]
[1766978622993,0.008861,3010.5,3008.9,0.16631]
[1766978623198,0.008861,3010.5,3009.2,1.44774503]
[1766978627600,0.008861,3010.5,3008.9,0.16631]
[1766978627804,0.008861,3010.5,3009.2,1.44774503]
[1766978640714,0.008861,3010.5,3009.8,1.44774503]
[1766978640912,0.00721848,3010.5,3009.8,1.44774503]
[1766978641209,0.16618,3011.4,3010.1,1.44774503]
[1766978642216,0.00497826,3011.1,3010.4,0.00497826]
[1766978643816,1.44774503,3010.9,3009.2,1.44774503]
[1766978644115,1.44774503,3010.9,3009.5,1.44774503]
[1766978645214,1.44774503,3010.9,3009.0,1.14971106]
[1766978645420,1.44774503,3010.6,3009.3,1.44774503]
[1766978645622,1.44774503,3010.6,3009.1,4.26084054]
[1766978645811,1.44774503,3010.6,3009.0,5.70858557]
[1766978646012,1.44774503,3010.6,3009.0,1.44774503]
[1766978646219,1.44774503,3010.6,3009.1,4.2978027]
[1766978646413,1.44774503,3010.6,3009.0,1.44774503]
[1766978650115,1.44774503,3010.1,3008.3,5.98491693]
[1766978650322,0.00497826,3009.5,3008.5,1.44774503]
[1766978650510,0.00497826,3009.5,3008.6,4.25398782]
[1766978650711,0.00497826,3009.5,3008.3,0.00238836]
[1766978651220,0.00497826,3009.5,3008.5,1.44774503]
[1766978651411,0.00497826,3009.5,3008.4,4.25398782]
[1766978651618,0.00497826,3009.5,3008.3,0.00238836]
[1766978651815,0.00497826,3009.5,3008.5,1.44774503]
[1766978652221,0.00497826,3009.5,3008.3,0.00238836]
[1766978653418,1.44774503,3009.4,3008.3,0.00238836]
[1766978655320,0.00497826,3009.5,3008.3,0.00238836]
[1766978655515,0.00497826,3009.5,3008.4,1.44774503]
[1766978656421,0.00497826,3009.5,3008.3,0.00238836]
[1766978660126,1.44774503,3009.4,3008.3,0.00238836]
[1766978662324,1.44774503,3009.1,3008.3,0.00238836]
[1766978662516,1.45110348,3009.1,3008.3,0.00238836]
[1766978665418,1.45110348,3009.1,3007.5,1.44774503]
[1766978665618,1.44774503,3008.5,3007.1,0.16642]
[1766978665823,1.44774503,3008.5,3007.0,0.11607182]
[1766978666416,1.44774503,3008.5,3007.0,0.11906545]
[1766978666729,1.44774503,3008.2,3007.0,0.00299363]
[1766978666928,0.00498703,3007.9,3007.0,0.00299363]
[1766978667644,1.45273206,3007.9,3007.0,0.00299363]
[1766978669736,0.00498703,3007.9,3007.0,0.00299363]
[1766978689450,4.752,3008.6,3007.0,0.00299363]
[1766978689748,1.44921419,3008.9,3007.0,0.00299363]
[1766978689945,6.20021419,3008.9,3007.0,0.00299363]
[1766978690541,0.00498703,3008.3,3007.6,0.00498703]
[1766978698249,0.00498703,3008.3,3007.0,0.00299363]
[1766978702756,0.00335845,3009.1,3007.6,1.44921419]
[1766978702950,0.00335845,3009.1,3007.1,4.26067159]
[1766978703150,0.00335845,3009.1,3007.0,1.61862782]
[1766978703347,0.00335845,3009.1,3007.1,4.26067159]
[1766978703953,0.00498703,3008.4,3007.8,0.00498703]
[1766978705555,0.00335845,3009.1,3007.8,0.00498703]
[1766978706650,0.00498703,3008.8,3007.8,0.00498703]
[1766978707154,0.00335845,3009.1,3007.9,5.72925991]
[1766978707359,4.746,3010.2,3008.3,1.44921419]
[1766978707557,0.16622,3010.7,3008.7,1.44921419]
[1766978708056,0.00498703,3010.0,3009.4,0.00498703]
[1766978708246,0.00777323,3010.0,3009.4,0.00864681]
[1766978711848,4.564,3010.9,3009.4,0.00864681]
[1766978712962,0.00498703,3010.5,3009.4,0.00864681]
[1766978721572,0.00498703,3010.5,3009.5,5.69804246]
[1766978721766,0.00498703,3010.5,3009.5,4.24882827]
[1766978732479,0.00498703,3010.5,3009.6,1.44639024]
[1766978735890,0.00274272,3010.9,3009.4,0.00864681]
[1766978736090,1.44639024,3011.9,3009.9,0.16626]
[1766978736283,1.44639024,3011.3,3009.9,5.85126]
[1766978736987,0.00498703,3010.9,3010.3,0.00498703]
[1766978740800,1.45137727,3010.9,3010.3,0.00498703]
[1766978740990,1.45137727,3010.9,3009.4,0.00365978]
[1766978741189,1.45137727,3010.9,3009.4,1.45005002]
[1766978741387,1.45137727,3010.9,3009.5,4.40846304]
[1766978741795,1.44639024,3010.6,3009.4,0.00365978]
[1766978741995,1.44639024,3010.6,3009.7,0.00498703]
[1766978744699,0.00498703,3010.9,3009.9,1.44639024]
[1766978744901,0.00498703,3010.9,3010.2,1.44639024]
[1766978745199,0.00498703,3010.9,3009.7,0.00498703]
[1766978745588,0.00498703,3010.9,3009.8,4.3102942]
[1766978745799,0.00498703,3010.9,3009.7,0.00498703]
[1766978756218,0.00498703,3010.9,3009.9,1.44639024]
[1766978757010,0.00498703,3010.9,3009.7,0.00498703]
[1766978757408,0.00498703,3010.9,3009.8,4.29665752]
[1766978758314,0.00498703,3010.9,3009.9,1.44639024]
[1766978758709,0.0036289,3011.3,3010.2,1.44639024]
[1766978759718,0.00498703,3011.1,3010.2,1.44639024]
[1766978761525,0.0036289,3011.3,3010.5,1.44639024]
[1766978761718,0.0036289,3011.3,3010.2,1.44639024]
[1766978762128,1.44639024,3012.0,3010.2,1.44639024]
[1766978762326,1.44639024,3012.0,3010.5,1.44639024]
[1766978762527,0.00329548,3011.6,3010.5,1.44639024]
[1766978763123,0.00602765,3011.6,3010.5,1.44639024]
[1766978763821,0.00602765,3011.6,3010.8,1.44639024]
[1766978764021,1.44639024,3012.4,3010.8,1.44639024]
[1766978764224,1.44639024,3012.5,3010.8,1.44639024]
[1766978764824,1.61249024,3012.8,3011.1,1.44639024]
[1766978765025,1.61346349,3012.8,3011.6,0.00498703]
[1766978765332,1.45137727,3012.5,3010.8,1.44639024]
[1766978766020,0.00498703,3012.5,3010.8,1.44639024]
[1766978766219,1.44639024,3012.4,3011.3,0.00498703]
[1766978770830,0.00498703,3012.5,3011.3,0.00498703]
[1766978771034,1.44639024,3012.4,3011.3,0.00498703]
[1766978771228,0.00498703,3012.5,3011.3,0.00498703]
[1766978771424,1.45137727,3012.5,3011.3,0.00498703]
[1766978777441,0.00498703,3012.5,3011.3,0.00498703]
[1766978780642,1.45137727,3012.5,3011.3,0.00498703]
[1766978784243,0.00498703,3012.5,3011.3,0.00498703]
[1766978784543,0.17110703,3012.5,3011.3,0.00498703]
[1766978784739,1.44639024,3012.3,3011.3,0.00498703]
[1766978785139,1.44639024,3012.0,3010.8,0.00352792]
[1766978786144,1.44639024,3012.0,3011.1,0.00498703]